bitfinex-derivatives/quotes_ETHF0:USTF0_20250403
["timestamp","ask_amount","ask_price","bid_price","bid_amount"]
[1743638890135,1.11757969,1803.5,1803.4,2.1445]
[1743638890540,0.00831969,1803.5,1803.4,3.25382]
[1743638890741,1.11757969,1803.5,1803.4,2.1445]
[1743638890942,0.00831969,1803.5,1803.4,3.25382]
[1743638891340,0.00831969,1803.5,1803.4,2.1445]
[1743638891737,1.10938,1803.3,1803.2,5.824]
[1743638892042,1.10944,1803.2,1803.1,0.00568911]
[1743638892249,1.10944,1803.2,1803.1,9.11e-06]
[1743638892250,8.23604,1803.2,1803.1,9.11e-06]
[1743638893041,8.57119998,1803.2,1803.1,9.11e-06]
[1743638893743,1.10975,1802.7,1802.6,1.4015]
[1743638893949,6.73575,1802.7,1802.6,1.4015]
[1743638894635,5.626,1802.7,1802.3,3.2078]
[1743638894944,5.626,1802.7,1802.4,1.3917]
[1743638894945,1.10988,1802.5,1802.4,1.3917]
[1743638895448,1.4889,1802.6,1802.3,3.2078]
[1743638895449,1.10994,1802.4,1802.3,3.2078]
[1743638895747,2.59884,1802.4,1802.3,3.2078]
[1743638896044,4.26383,1802.4,1802.0,3.2078]
[1743638896256,1.11012,1802.1,1802.0,3.2078]
[1743638896743,0.00831969,1802.5,1802.0,5.7078]
[1743638896942,0.00831969,1802.5,1802.3,3.2078]
[1743638897247,0.00831969,1802.5,1802.4,1.4041]
[1743638898048,0.00831969,1802.5,1802.4,2.51404]
[1743638898245,0.00831969,1802.5,1802.4,1.4041]
[1743638898747,1.11819969,1802.5,1802.4,1.4041]
[1743638898945,0.00831969,1802.5,1802.4,1.4041]
[1743638899139,3.2078,1803.3,1802.4,9.7281]
[1743638899341,2.77377,1803.1,1802.4,10.4359]
[1743638899555,1.10988,1802.5,1802.4,10.4359]
[1743638899740,1.10988,1802.5,1802.4,4.6119]
[1743638899941,1.10986,1802.6,1802.4,4.6119]
[1743638900147,1.10975,1802.7,1802.4,4.6119]
[1743638900348,0.00831969,1802.7,1802.6,3.2078]
[1743638900547,1.11806969,1802.7,1802.6,3.2078]
[1743638900939,0.00831969,1802.7,1802.6,4.31761]
[1743638901143,0.00831969,1802.7,1802.6,6.81761]
[1743638901339,0.00831969,1802.7,1802.6,4.31761]
[1743638901548,1.11806969,1802.7,1802.6,3.2078]
[1743638901847,1.11806969,1802.7,1802.6,3.90759922]
[1743638902349,6.66106969,1802.7,1802.6,0.69979922]
[1743638902651,1.10988,1802.5,1802.4,1.4041]
[1743638902844,1.10988,1802.5,1802.4,4.6119]
[1743638903842,1.10986,1802.6,1802.4,4.6119]
[1743638904043,0.00831969,1802.7,1802.4,4.6119]
[1743638904247,0.00831969,1802.7,1802.6,3.2078]
[1743638904448,1.11806969,1802.7,1802.6,3.2078]
[1743638905152,0.00831969,1802.7,1802.4,10.4359]
[1743638905353,0.00831969,1802.7,1802.6,4.31761]
[1743638905849,1.10958,1803.0,1802.7,1.10975]
[1743638906055,1.10975,1802.7,1802.6,0.70023692]
[1743638906254,1.5002,1803.0,1802.7,1.10973]
[1743638906551,3.2078,1803.2,1802.8,3.2078]
[1743638906552,1.10963,1802.9,1802.8,3.2078]
[1743638906754,1.10959,1803.0,1802.7,4.31751]
[1743638906947,0.00831969,1803.0,1802.7,3.2078]
[1743638907144,1.10975,1802.7,1802.6,0.2293]
[1743638908543,7.0122,1802.9,1802.6,0.2293]
[1743638908750,1.10966,1802.9,1802.6,1.33909]
[1743638908947,0.00831969,1803.0,1802.7,4.31754]
[1743638909150,1.10975,1802.7,1802.6,0.2293]
[1743638909557,1.1099,1802.5,1802.3,5.02291968]
[1743638909757,1.10994,1802.4,1802.3,3.91291968]
[1743638910252,1.10994,1802.4,1802.3,8.22378431]
[1743638910454,1.10994,1802.4,1802.3,4.61378431]
[1743638910847,1.10994,1802.4,1802.3,5.72378431]
[1743638911160,1.10994,1802.4,1802.3,4.61378431]
[1743638911353,1.10994,1802.4,1802.3,0.70918431]
[1743638911555,1.10994,1802.4,1802.3,0.00831968]
[1743638912854,4.31774,1802.4,1802.3,9.68e-06]
[1743638913051,1.10994,1802.4,1802.3,9.68e-06]
[1743638913459,4.31774,1802.4,1802.3,9.68e-06]
[1743638914158,1.10994,1802.4,1802.3,9.68e-06]
[1743638914660,4.31774,1802.4,1802.3,9.68e-06]
[1743638914851,6.81774,1802.4,1802.3,9.68e-06]
[1743638915054,2.77563,1801.9,1801.5,0.7109]
[1743638915255,1.11042,1801.7,1801.5,1.82139]
[1743638915557,5.421,1801.9,1801.6,3.2078]
[1743638915749,1.11032,1801.8,1801.6,3.2078]
[1743638915954,6.53129,1801.9,1801.7,1.11037]
[1743638916155,0.00831969,1801.9,1801.8,3.2078]
[1743638916352,0.00831969,1801.9,1801.8,4.31807]
[1743638916852,1.11856969,1801.9,1801.8,3.91114935]
[1743638917261,1.11856969,1801.9,1801.8,5.02145935]
[1743638917855,1e-08,1801.9,1801.8,7.52145935]
[1743638918155,1e-08,1801.9,1801.8,5.02145935]
[1743638918454,1e-08,1801.9,1801.8,7.52145935]
[1743638919359,1e-08,1801.9,1801.8,8.27205935]
[1743638919753,1.11025001,1801.9,1801.8,5.77205935]
[1743638920052,1e-08,1801.9,1801.8,5.77205935]
[1743638920258,1e-08,1801.9,1801.8,8.27205935]
[1743638920458,1e-08,1801.9,1801.8,14.09605935]
[1743638920959,1e-08,1801.9,1801.8,3.91114935]
[1743638921256,1.11025001,1801.9,1801.8,3.91114935]
[1743638921859,1.11025001,1801.9,1801.8,3.2078]
[1743638922054,1e-08,1801.9,1801.8,3.2078]
[1743638922257,1e-08,1801.9,1801.8,4.31811]
[1743638922458,1.11025001,1801.9,1801.8,3.2078]
[1743638922659,1.11031,1801.8,1801.7,1.3941]
[1743638922858,1.11031,1801.8,1801.7,4.6019]
[1743638923063,1.11031,1801.8,1801.7,5.30632867]
[1743638923266,1.11031,1801.8,1801.7,6.41669867]
[1743638923463,1.11031,1801.8,1801.7,5.30632867]
[1743638923655,1.11031,1801.8,1801.7,6.41669867]
[1743638923863,1e-08,1801.9,1801.8,1.11031]
[1743638924260,1e-08,1801.9,1801.8,5.05773867]
[1743638926563,8.81812,1802.7,1802.5,1.10988]
[1743638926564,1.10983,1802.6,1802.5,1.10988]
[1743638926963,0.6891,1803.1,1802.5,2.5]
[1743638927166,1.4162,1803.0,1802.9,1.10963]
[1743638927354,1.4162,1803.0,1802.9,4.31743]
[1743638927559,1.4162,1803.0,1802.9,5.02056551]
[1743638927861,0.00831969,1803.1,1802.9,5.02052551]
[1743638928062,1.11782969,1803.1,1803.0,2.49867]
[1743638928263,1.11782969,1803.1,1803.0,3.20180551]
[1743638928463,0.00831969,1803.1,1803.0,3.20180551]
[1743638928864,0.00831969,1803.1,1803.0,5.70180551]
[1743638929067,1.79832,1803.6,1803.1,2.7737]
[1743638929264,5.54423,1804.2,1803.0,5.33243551]
[1743638929265,2.7722,1804.2,1803.8,1.10905]
[1743638929567,1.10909,1803.8,1803.6,4.31695]
[1743638929863,2.63093,1803.9,1803.7,1.1091]
[1743638930069,2.63093,1803.9,1803.8,3.2078]
[1743638930665,2.63093,1803.9,1803.8,4.31688]
[1743638930964,2.63093,1803.9,1803.8,1.10908]
[1743638930965,1.5219,1803.9,1803.8,1.10908]
[1743638931271,1.5219,1803.9,1803.8,4.31688]
[1743638931673,1.5219,1803.9,1803.6,3.21611969]
[1743638931970,1.10914,1803.7,1803.6,3.21611969]
[1743638932370,1.5219,1803.9,1803.6,3.21611969]
[1743638932973,1.10912,1803.8,1803.6,3.21611969]
[1743638933173,1.4903,1803.7,1803.6,4.32531969]
[1743638933772,0.00831969,1804.0,1803.9,1.10901]
[1743638934066,1.11727969,1804.0,1803.8,1.10903]
[1743638934270,1.10906,1803.9,1803.7,1.10912]
[1743638934471,0.00831969,1804.0,1803.6,3.21611969]
[1743638934472,1.11729969,1804.0,1803.8,1.10906]
[1743638934669,1.11729969,1804.0,1803.8,4.31682]
[1743638934670,0.00831969,1804.0,1803.8,4.31682]
[1743638934971,1.11727969,1804.0,1803.8,4.31682]
[1743638935171,0.00831969,1804.0,1803.9,1.10901]
[1743638935373,0.00831969,1804.0,1803.7,1.3747]
[1743638935374,1.11727969,1804.0,1803.8,4.31684]
[1743638935572,1.4548,1803.9,1803.8,4.31684]
[1743638935771,0.00831969,1804.0,1803.9,1.10901]
[1743638936475,0.00831969,1804.0,1803.9,8.30771]
[1743638936666,0.00831969,1804.0,1803.9,7.1987]
[1743638936866,0.00831969,1804.0,1803.9,8.30771]
[1743638937065,0.00831969,1804.0,1803.9,11.51551]
[1743638937768,0.00831969,1804.0,1803.9,5.69151]
[1743638937972,1.11726969,1804.0,1803.9,3.2078]
[1743638938177,0.00831969,1804.0,1803.9,3.2078]
[1743638938376,0.00831969,1804.0,1803.9,4.31681]
[1743638939269,0.00831969,1804.0,1803.9,10.14081]
[1743638939774,1.4773,1804.4,1804.3,1.10877]
[1743638939969,1.4773,1804.4,1804.3,4.31657]
[1743638940170,2.58603,1804.4,1804.3,4.31657]
[1743638940472,1.10871,1804.4,1804.3,3.2078]
[1743638940672,2.61141,1804.4,1804.3,3.2078]
[1743638942770,1.5027,1804.4,1804.3,4.31657]
[1743638943774,1.5027,1804.4,1804.3,3.2078]
[1743638943985,1.5027,1804.4,1804.3,1.10877]
[1743638944778,2.61141,1804.4,1804.3,1.10877]
[1743638944977,1.5027,1804.4,1804.1,3.2078]
[1743638945173,1.10883,1804.2,1804.1,3.2078]
[1743638945675,4.27448,1804.4,1804.2,1.10881]
[1743638945676,1.10879,1804.3,1804.2,1.10881]
[1743638945877,2.63259,1804.3,1804.2,1.10881]
[1743638946280,1.5238,1804.3,1804.2,1.10881]
[1743638946580,1.11697969,1804.5,1804.4,1.10871]
[1743638946876,0.00831969,1804.5,1804.4,1.10871]
[1743638947984,0.00831969,1804.5,1804.4,2.50141]
[1743638948280,21.98542553,1805.4,1804.9,2.77098]
[1743638948474,1.5238,1805.3,1805.2,4.31602]
[1743638948673,1.10809,1805.4,1805.3,1.10813]
[1743638948875,1.5055,1805.5,1805.4,1.10809]
[1743638949173,1.5055,1805.5,1805.4,1.4374]
[1743638949374,1.5055,1805.5,1805.4,2.54549]
[1743638949677,1.10809,1805.4,1805.3,5.83231969]
[1743638949879,1.10809,1805.4,1805.3,0.00831969]
[1743638950486,2.61359,1805.4,1805.3,0.00831969]
[1743638951284,1.10815,1805.3,1805.2,0.19853094]
[1743638951486,1.10815,1805.3,1804.9,3.2078]
[1743638951487,1.10824,1805.2,1804.9,3.2078]
[1743638951783,1.10822,1805.2,1805.1,3.2078]
[1743638951977,2.6137,1805.3,1805.1,4.31607]
[1743638952173,1.5055,1805.3,1805.2,1.10822]
[1743638952381,1.5055,1805.3,1805.2,2.51322]
[1743638953078,1.5055,1805.3,1805.2,8.33722]
[1743638953273,1.11631969,1805.6,1805.2,9.729]
[1743638953479,0.00831969,1805.6,1805.5,3.2078]
[1743638953680,1.11628969,1805.6,1805.5,1.405]
[1743638953989,1.10807,1805.5,1805.4,1.10809]
[1743638954187,2.63412969,1805.6,1805.4,2.51309]
[1743638954374,0.00831969,1805.6,1805.5,4.31583]
[1743638954774,1.11628969,1805.6,1805.5,5.79353]
[1743638954982,1.11628969,1805.6,1805.5,1.4777]
[1743638955195,1.11628969,1805.6,1805.5,2.58573]
[1743638955483,0.00831969,1805.6,1805.5,2.58573]
[1743638955684,1.11628969,1805.6,1805.5,5.79353]
[1743638956084,0.00831969,1805.6,1805.5,5.79353]
[1743638956285,1.11628969,1805.6,1805.5,4.6855]
[1743638956482,2.54658969,1805.6,1805.5,4.6855]
[1743638956677,0.00831969,1805.6,1805.5,5.79353]
[1743638957282,0.00831969,1805.6,1805.5,11.61753]
[1743638957483,3.51891,1806.3,1805.6,2.76981]
[1743638957685,3.51891,1806.3,1805.5,13.0095]
[1743638957686,1.10779,1805.9,1805.8,3.2078]
[1743638958080,1.10774,1806.0,1805.8,3.2078]
[1743638958288,2.52076,1806.2,1805.9,1.484]
[1743638958488,1.10766,1806.1,1806.0,3.2078]
[1743638958689,2.52904969,1806.2,1806.0,3.2078]
[1743638958990,1.11591969,1806.2,1806.1,1.484]
[1743638959392,1.11591969,1806.2,1805.8,8.59361]
[1743638959393,1.10779,1805.9,1805.8,3.2078]
[1743638959694,4.18227,1806.1,1805.6,3.2078]
[1743638959884,1.4131,1805.8,1805.6,1.10795]
[1743638960089,1.4131,1805.8,1805.5,10.5158]
[1743638960393,3.47637,1806.1,1805.7,3.2078]
[1743638960394,0.7072,1806.1,1805.7,3.2078]
[1743638960595,2.52087,1806.0,1805.8,2.59179]
[1743638960889,1.8149,1806.1,1806.0,1.10772]
[1743638961194,1.10771,1806.1,1805.9,2.61517]
[1743638961388,2.53922,1806.0,1805.9,2.61517]
[1743638961594,1.10779,1805.9,1805.8,9.0318]
[1743638961892,2.53929,1805.9,1805.8,9.0318]
[1743638962688,2.53929,1805.9,1805.8,5.824]
[1743638962893,4.20102,1805.9,1805.5,8.43942]
[1743638963099,1.10792,1805.7,1805.5,8.43939]
[1743638963294,1.4315,1805.6,1805.5,8.43939]
[1743638963502,1.10785,1805.8,1805.5,7.3314]
[1743638963701,6.71871,1806.1,1805.7,1.10788]
[1743638963702,2.53934,1805.9,1805.7,1.10788]
[1743638963899,2.53934,1805.9,1805.6,3.2078]
[1743638964103,2.53934,1805.9,1805.7,1.10785]
[1743638964298,1.10785,1805.8,1805.6,4.31572]
[1743638964505,1.5113,1805.7,1805.6,4.31572]
[1743638964805,1.10797,1805.6,1805.5,7.3314]
[1743638965099,1.5113,1805.7,1805.5,7.3314]
[1743638965292,1.5113,1805.7,1805.2,7.66996]
[1743638965293,1.1081,1805.4,1805.2,7.66996]
[1743638965497,1.5113,1805.3,1805.2,7.67002]
[1743638965703,1.5113,1805.3,1805.2,12.29442]
[1743638966697,0.7395,1805.9,1805.3,2.77039]
[1743638966899,2.48587,1805.8,1805.6,3.2078]
[1743638967098,2.48587,1805.8,1805.4,10.10224]
[1743638967099,2.48587,1805.8,1805.4,13.31004]
[1743638967400,2.48587,1805.8,1805.6,4.31573]
[1743638967707,2.48589,1805.8,1805.6,4.31573]
[1743638968005,1.378,1805.8,1805.6,4.31573]
[1743638968305,1.378,1805.8,1805.7,1.10791]
[1743638968501,1.378,1805.8,1805.7,1.508]
[1743638968502,2.48585,1805.8,1805.7,1.508]
[1743638969005,1.10791,1805.7,1805.6,9.0318]
[1743638969299,2.48591,1805.7,1805.6,5.824]
[1743638970501,1.10782,1805.9,1805.7,1.10786]
[1743638970705,1.10794,1805.7,1805.5,3.2078]
[1743638970906,1.10794,1805.7,1805.6,1.5015]
[1743638971102,1.10783,1805.9,1805.6,1.5015]
[1743638971308,1.3937,1805.9,1805.6,2.60942]
[1743638971600,2.50153,1805.9,1805.7,4.31567]
[1743638971806,1.3937,1805.9,1805.7,4.31569]
[1743638972005,3.21611969,1806.2,1805.8,3.2078]
[1743638972204,0.00831969,1806.2,1806.1,1.10766]
[1743638972404,0.00831969,1806.2,1805.9,9.73132716]
[1743638972604,0.00831969,1806.2,1806.1,4.31546]
[1743638972995,0.00831969,1806.2,1806.1,5.01498716]
[1743638973404,0.00831969,1806.2,1806.1,3.90732716]
[1743638973702,1.11591969,1806.2,1806.1,0.69952716]
[1743638974005,1.11591969,1806.2,1806.0,1.10769]
[1743638974215,0.00831969,1806.2,1806.1,4.31546]
[1743638974509,1.41621969,1806.2,1806.1,4.31546]
[1743638974695,1.41621969,1806.2,1805.9,9.0318]
[1743638974894,1.10769,1806.1,1805.9,9.0318]
[1743638975297,1.10769,1806.1,1805.9,10.13954]
[1743638975605,1.10769,1806.1,1806.0,0.70105777]
[1743638975801,1.41621969,1806.2,1806.0,0.70105777]
[1743638976006,1.41621969,1806.2,1806.1,4.31546]
[1743638976204,2.52381969,1806.2,1806.1,3.90885777]
[1743638976507,2.52381969,1806.2,1806.1,0.70105777]
[1743638977009,1.41621969,1806.2,1806.1,5.01651777]
[1743638977706,2.52381969,1806.2,1806.1,3.90885777]
[1743638977899,1.41621969,1806.2,1806.1,5.01651777]
[1743638978106,2.52381969,1806.2,1806.1,0.70105777]
[1743638978304,2.52381969,1806.2,1806.1,3.90885777]
[1743638978504,2.52381969,1806.2,1806.1,0.70105777]
[1743638979912,1.41621969,1806.2,1806.1,1.80871777]
[1743638980109,1.41621969,1806.2,1806.1,5.01651777]
[1743638980306,2.52381969,1806.2,1806.1,3.90885777]
[1743638980812,2.52381969,1806.2,1806.1,0.70105777]
[1743638981205,1.41621969,1806.2,1806.1,1.80871777]
[1743638981511,2.52381969,1806.2,1806.1,0.70105777]
[1743638982212,0.00831969,1806.2,1806.1,1.80871777]
[1743638982406,1.4107,1806.5,1806.4,1.10748]
[1743638982605,1.4107,1806.5,1806.4,4.31528]
[1743638983112,1.4107,1806.5,1806.4,3.2078]
[1743638983113,2.51812,1806.5,1806.4,3.2078]
[1743638983310,2.51812,1806.5,1806.4,5.01633777]
[1743638983712,2.51812,1806.5,1806.4,3.90885777]
[1743638984212,0.00554651,1806.6,1806.5,1.10742]
[1743638984712,0.00554651,1806.6,1806.5,1.80847777]
[1743638985304,0.00554651,1806.6,1806.5,7.63247777]
[1743638986115,2.76689,1807.6,1807.2,1.10696]
[1743638986310,1.5217,1807.3,1807.2,4.31476]
[1743638986715,1.81439,1807.6,1807.2,5.97524]
[1743638986919,0.6945,1807.8,1807.3,0.70085871]
[1743638986920,1.10673,1807.7,1807.3,0.70085871]
[1743638987113,1.5217,1807.5,1807.4,4.31467]
[1743638987414,0.6945,1807.8,1807.4,3.2078]
[1743638987717,1.5217,1807.7,1807.3,0.00831969]
[1743638987909,1.1068,1807.6,1807.4,1.10686]
[1743638988109,1.3743,1807.5,1807.4,1.10686]
[1743638988309,19.9191113,1807.9,1807.4,9.0318]
[1743638988511,20.5858113,1807.9,1807.8,1.10662]
[1743638988718,20.5858113,1807.9,1807.8,4.31442]
[1743638989323,19.2115113,1807.9,1807.8,4.31442]
[1743638989613,19.2115113,1807.9,1807.8,10.13842]
[1743638990014,19.2115113,1807.9,1807.8,6.93062]
[1743638990216,6.2363,1808.1,1807.8,5.824]
[1743638990415,7.34277,1808.1,1807.9,1.10656]
[1743638990621,7.34277,1808.1,1807.8,9.0318]
[1743638990812,7.34277,1808.1,1808.0,1.1065]
[1743638991014,7.34277,1808.1,1807.9,1.10652]
[1743638991321,7.34277,1808.1,1807.9,1.10651]
[1743638991521,1.1065,1808.0,1807.8,10.13838]
[1743638991724,1.4372,1807.9,1807.8,10.13838]
[1743638992217,5.96848,1808.1,1808.0,1.1065]
[1743638992521,4.862,1808.1,1807.9,1.5168]
[1743638992723,4.862,1808.1,1808.0,1.1065]
[1743638993018,4.862,1808.1,1808.0,4.3143]
[1743638993223,7.40564,1808.1,1808.0,4.3143]
[1743638993809,1.4372,1808.1,1808.0,4.3143]
[1743638994310,1.10656,1807.9,1807.8,5.824]
[1743638994515,3.2078,1807.9,1807.6,1.10674]
[1743638994714,2.52418,1807.8,1807.6,1.10674]
[1743638995319,1.10668,1807.7,1807.6,1.10674]
[1743638995625,2.52418,1807.7,1807.6,1.10674]
[1743638995923,1.4175,1807.7,1807.6,1.10674]
[1743638996524,2.52418,1807.7,1807.6,1.10674]
[1743638996822,2.52418,1807.7,1807.5,2.59006]
[1743638997223,2.52418,1807.7,1807.4,3.2078]
[1743638997224,1.4175,1807.7,1807.3,5.83231969]
[1743638997423,4.31467,1807.4,1807.3,1e-08]
[1743638997628,1.10687,1807.4,1807.3,1e-08]
[1743638998127,3.27997,1807.4,1807.3,1e-08]
[1743638999019,2.58217,1807.4,1807.3,1e-08]
[1743638999224,2.58217,1807.4,1807.3,1.43070001]
[1743638999827,2.58217,1807.4,1807.3,1e-08]
[1743639000827,3.30677,1807.4,1807.3,1e-08]
[1743639001430,5.80677,1807.4,1807.3,1e-08]
[1743639002730,2.76779,1807.0,1806.2,9.0318]
[1743639002931,1.10748,1806.4,1806.2,10.4748]
[1743639003132,1.10748,1806.4,1806.3,1.10754]
[1743639003329,1.4439,1806.6,1806.4,1.10743]
[1743639003521,2.55131,1806.6,1806.4,1.10743]
[1743639003725,2.55131,1806.6,1806.3,0.7366]
[1743639003726,1.4439,1806.6,1806.3,0.7366]
[1743639004031,1.4439,1806.6,1806.5,1.10742]
[1743639004032,1.10736,1806.6,1806.5,1.10742]
[1743639004234,1.10748,1806.4,1806.3,0.74489646]
[1743639004427,1.4439,1806.6,1806.4,1.10748]
[1743639004731,1.4439,1806.6,1806.3,0.74489646]
[1743639004732,2.55128,1806.6,1806.3,0.74489646]
[1743639004930,1.10742,1806.5,1806.4,1.10744]
[1743639005326,1.10748,1806.4,1806.3,1.85239646]
[1743639005521,1.10748,1806.4,1806.3,0.00829646]
[1743639006235,2.50318,1806.4,1806.3,0.00829646]
[1743639007633,1.10742,1806.6,1806.4,1.10746]
[1743639007932,1.10748,1806.4,1806.3,0.00829646]
[1743639008932,1.10748,1806.4,1806.3,1.11583646]
[1743639009132,1.10746,1806.5,1806.3,1.11583646]
[1743639009434,1.10748,1806.4,1806.3,0.00829646]
[1743639010032,1.10748,1806.4,1806.3,1.11583646]
[1743639010233,1.10745,1806.5,1806.3,0.00829646]
[1743639010434,4.76624223,1806.7,1806.4,1.10748]
[1743639010640,1.50874223,1806.7,1806.4,3.2078]
[1743639011326,1.10742,1806.5,1806.4,3.2078]
[1743639011526,1.10742,1806.5,1806.4,4.31528]
[1743639011733,1.50874223,1806.7,1806.5,1.10738]
[1743639011734,1.1074,1806.6,1806.5,1.10738]
[1743639012035,1.10742,1806.5,1806.4,4.31523]
[1743639012231,2.61606223,1806.7,1806.6,1.10736]
[1743639012431,1.10739,1806.6,1806.5,1.10736]
[1743639012832,0.00824223,1806.7,1806.6,1.10736]
[1743639013033,0.00824223,1806.7,1806.6,5.03866]
[1743639013441,0.00824223,1806.7,1806.6,13.36266]
[1743639014034,0.00824223,1806.7,1806.6,10.86266]
[1743639014730,1.11554223,1806.7,1806.6,10.86266]
[1743639015230,0.00824223,1806.7,1806.6,10.86266]
[1743639016930,1.11554223,1806.7,1806.6,10.86266]
[1743639017135,1.11554223,1806.7,1806.6,3.2078]
[1743639018138,1.11554223,1806.7,1806.6,4.31516]
[1743639018334,1.11554223,1806.7,1806.6,3.2078]
[1743639018937,1.11554223,1806.7,1806.6,4.31516]
[1743639019335,0.00824223,1806.7,1806.6,4.31516]
[1743639020538,1.11554223,1806.7,1806.6,3.2078]
[1743639020841,1.11554223,1806.7,1806.3,8.20957646]
[1743639020842,0.00824223,1806.7,1806.4,1.10743]
[1743639021033,1.10742,1806.5,1806.4,1.10743]
[1743639021429,1.10748,1806.4,1806.3,0.00829646]
[1743639021629,2.61568,1806.4,1806.3,0.00829646]
[1743639021829,2.61568,1806.4,1806.3,1.11583646]
[1743639022042,2.61568,1806.4,1806.3,2.58333646]
[1743639022429,2.61568,1806.4,1806.3,0.00829646]
[1743639022837,0.00824223,1806.7,1806.3,0.00829646]
[1743639023041,0.00824223,1806.7,1806.6,1.10736]
[1743639023335,0.00824223,1806.7,1806.5,3.2078]
[1743639023336,1.10736,1806.6,1806.5,3.2078]
[1743639023537,0.00824223,1806.7,1806.6,1.10736]
[1743639023737,0.00824223,1806.7,1806.6,2.57486]
[1743639023943,1.11554223,1806.7,1806.6,2.57486]
[1743639024335,0.00824223,1806.7,1806.6,2.57486]
[1743639024836,1.11554223,1806.7,1806.6,2.57486]
[1743639025547,0.00824223,1806.7,1806.6,2.57486]
[1743639025747,1.11554223,1806.7,1806.6,2.57486]
[1743639026041,0.00824223,1806.7,1806.6,2.57486]
[1743639026644,0.00824223,1806.7,1806.6,3.27766019]
[1743639026835,0.00824223,1806.7,1806.6,9.10166019]
[1743639027237,1.85444,1807.2,1807.1,1.10705]
[1743639027442,1.10717,1807.0,1806.9,1.10714]
[1743639027743,1.10717,1806.9,1806.8,4.315]
[1743639027940,1.10717,1806.9,1806.6,3.2078]
[1743639027941,1.1073,1806.7,1806.6,3.2078]
[1743639028344,1.1073,1806.7,1806.6,4.31516]
[1743639029141,1.10728,1806.8,1806.7,1.10727]
[1743639029447,5.73907,1807.1,1807.0,1.10711]
[1743639029641,1.10707,1807.1,1807.0,1.10711]
[1743639029847,3.34454,1807.2,1807.1,1.10705]
[1743639030149,1.10705,1807.1,1807.0,3.9109323]
[1743639030345,2.59715,1807.1,1807.0,0.7031323]
[1743639030542,1.4901,1807.1,1807.0,1.10711]
[1743639030849,1.4901,1807.1,1806.8,1.10719]
[1743639031044,1.10723,1806.8,1806.7,10.13904]
[1743639031348,1.10721,1806.9,1806.8,1.10721]
[1743639031546,1.10723,1806.8,1806.7,5.824]
[1743639031748,1.1073,1806.7,1806.6,1.10733]
[1743639032951,1.4329,1806.8,1806.7,1.1073]
[1743639033452,1.4329,1806.8,1806.5,4.6592]
[1743639033651,1.10732,1806.7,1806.6,1.10732]
[1743639034450,2.54018,1806.8,1806.7,1.1073]
[1743639034653,1.4329,1806.8,1806.7,1.1073]
[1743639034852,2.54013,1806.8,1806.7,1.1073]
[1743639035048,1.4329,1806.8,1806.7,1.1073]
[1743639035247,1.4329,1806.8,1806.7,4.3151]
[1743639035555,2.54013,1806.8,1806.7,1.1073]
[1743639035752,1.10732,1806.7,1806.6,1.10732]
[1743639036054,2.60722,1806.7,1806.6,1.81149277]
[1743639036251,2.60722,1806.7,1806.6,0.70417277]
[1743639036647,1.10736,1806.6,1806.5,4.31517]
[1743639036849,2.60936,1806.6,1806.5,5.68587]
[1743639037351,1.502,1806.6,1806.5,6.39087016]
[1743639037555,2.76772,1807.1,1806.5,5.28350016]
[1743639037744,1.10721,1806.9,1806.8,1.10722]
[1743639037946,1.10723,1806.8,1806.7,3.2078]
[1743639038246,2.60923,1806.8,1806.7,4.3151]
[1743639038446,1.10716,1807.0,1806.7,8.05173016]
[1743639038653,2.60916,1807.0,1806.9,1.10714]
[1743639038847,1.502,1807.0,1806.9,4.31494]
[1743639039051,2.60911,1807.0,1806.9,4.31494]
[1743639039358,2.60911,1807.0,1806.9,5.01994016]
[1743639040354,8.08489,1807.2,1807.0,1.10711]
[1743639040355,1.10707,1807.1,1807.0,1.10711]
[1743639040560,1.10707,1807.1,1807.0,2.50541]
[1743639040761,1.10711,1807.0,1806.9,1.40000016]
[1743639040952,1.10711,1807.0,1806.9,0.70500016]
[1743639041461,1.10711,1807.0,1806.9,1.81217016]
[1743639042464,1.10711,1807.0,1806.9,5.01997016]
[1743639042664,1.1071,1807.1,1807.0,1.10707]
[1743639042860,1.1071,1807.1,1807.0,2.60617]
[1743639043067,4.559,1807.3,1807.0,2.60617]
[1743639043068,1.10698,1807.3,1807.2,1.10695]
[1743639043467,2.54748,1807.3,1807.2,1.10695]
[1743639043867,1.4405,1807.3,1807.2,6.93095]
[1743639044163,20.3183813,1807.4,1807.3,1.10693]
[1743639044363,20.3183813,1807.4,1807.3,4.31473]
[1743639044861,20.3183813,1807.4,1807.3,5.0191585]
[1743639045466,21.7588813,1807.4,1807.3,5.0191585]
[1743639045866,21.7588813,1807.4,1807.3,4.31473]
[1743639046064,21.7588813,1807.4,1807.3,1.10693]
[1743639046562,2.76748,1807.2,1806.6,9.0318]
[1743639046764,2.76779,1807.0,1806.7,0.70458168]
[1743639046968,1.10723,1806.8,1806.7,0.70458168]
[1743639047370,1.1073,1806.7,1806.6,4.31516]
[1743639047566,2.5242,1806.7,1806.6,3.2078]
[1743639048669,2.5242,1806.7,1806.6,4.31516]
[1743639048869,2.5242,1806.7,1806.6,3.2078]
[1743639049472,2.5242,1806.7,1806.6,4.31516]
[1743639050066,2.5242,1806.7,1806.6,3.2078]
[1743639050263,2.5242,1806.7,1806.6,4.31516]
[1743639050574,1.1073,1806.7,1806.6,3.2078]
[1743639050767,2.5736,1806.7,1806.6,4.31516]
[1743639050962,2.5736,1806.7,1806.6,5.02041439]
[1743639051162,2.5736,1806.7,1806.6,3.91305439]
[1743639051564,2.5736,1806.7,1806.6,3.2078]
[1743639052868,1.10736,1806.6,1806.5,1.1074]
[1743639053066,1.10742,1806.5,1806.4,4.31523]
[1743639053371,1.10742,1806.5,1806.4,5.81953]
[1743639053573,1.10742,1806.5,1806.4,6.524825]
[1743639054370,1.10741,1806.6,1806.5,1.10739]
[1743639054566,1.10741,1806.6,1806.5,2.61169]